bitfinex/quotes_ETHUSD_20240822
["timestamp","ask_amount","ask_price","bid_price","bid_amount"]
[1724330014000,3.79726,2633.5,2633.0,2.4742]
[1724330014199,9.12907787,2634.3,2633.0,2.4742]
[1724330014200,3.79709,2633.6,2633.0,2.4742]
[1724330014401,4.176949,2633.5,2633.0,2.4742]
[1724330014635,4.176949,2633.5,2632.6,2.3993]
[1724330014636,3.0,2633.4,2632.6,2.3993]
[1724330014846,3.79838,2632.7,2632.6,2.3993]
[1724330015029,4.34838,2632.7,2632.6,2.3993]
[1724330015253,4.34838,2632.7,2632.3,50.0]
[1724330015254,3.79881,2632.4,2632.3,50.0]
[1724330015466,4.178691,2632.4,2632.3,50.0]
[1724330015765,7.977501,2632.4,2632.3,50.0]
[1724330015960,11.527501,2632.4,2632.3,50.0]
[1724330017290,7.728691,2632.4,2632.3,50.0]
[1724330017435,11.527501,2632.4,2632.3,50.0]
[1724330018249,15.326311,2632.4,2632.3,50.0]
[1724330018789,11.527501,2632.4,2632.3,50.0]
[1724330019003,7.34881,2632.4,2632.3,50.0]
[1724330019167,7.34881,2632.4,2632.3,49.96192816]
[1724330019168,6.79881,2632.4,2632.3,49.96192816]
[1724330019502,10.59762,2632.4,2632.3,49.96192816]
[1724330019665,14.39643,2632.4,2632.3,49.96192816]
[1724330019866,16.709563,2632.4,2632.3,49.96192816]
[1724330020067,16.709563,2632.4,2632.3,49.91378367]
[1724330020389,21.058373,2632.4,2632.3,40.01962529]
[1724330020588,21.058373,2632.4,2632.3,27.05865524]
[1724330020788,17.85550889,2632.4,2632.3,27.05865524]
[1724330021158,13.50669889,2632.4,2632.3,27.05865524]
[1724330021357,0.99122386,2632.4,2632.3,27.05865524]
[1724330021906,0.59594589,2632.4,2632.3,27.05865524]
[1724330022057,3.79854,2632.6,2632.3,27.05865524]
[1724330022459,0.39405534,2632.7,2632.3,27.05865524]
[1724330022720,3.7981,2632.9,2632.4,2.4094]
[1724330022901,1.69267409,2632.9,2632.4,2.4094]
[1724330023084,4.19171089,2633.0,2632.4,2.4094]
[1724330023287,4.283,2632.6,2632.3,27.05865524]
[1724330023491,7.57571089,2633.0,2632.3,21.36021524]
[1724330023492,11.39643,2632.4,2632.3,21.36021524]
[1724330023694,11.39643,2632.4,2632.3,15.66149524]
[1724330024012,7.59762,2632.4,2632.3,15.66149524]
[1724330024178,10.59762,2632.4,2632.3,15.6181652]
[1724330024377,11.14762,2632.4,2632.3,15.6181652]
[1724330024695,7.34881,2632.4,2632.3,15.6181652]
[1724330025282,3.0,2632.4,2632.3,15.6181652]
[1724330025500,3.79825,2632.8,2632.3,17.19264443]
[1724330026311,3.79825,2632.8,2632.3,19.60184443]
[1724330026670,6.79838,2632.7,2632.3,18.0273652]
[1724330026868,3.79881,2632.4,2632.3,15.6181652]
[1724330027111,10.59762,2632.4,2632.3,15.6181652]
[1724330028018,20.942282,2632.4,2632.3,15.6181652]
[1724330028326,12.2849,2632.4,2632.3,15.6181652]
[1724330028529,0.39371089,2633.0,2632.3,15.6181652]
[1724330028866,0.59574095,2633.1,2632.3,15.6181652]
[1724330029212,0.98942824,2633.1,2632.3,15.6181652]
[1724330029420,0.98942824,2633.1,2632.4,1.79084652]
[1724330029718,0.59574095,2633.1,2632.4,1.79084652]
[1724330029921,3.79696,2633.7,2632.5,2.4813]
[1724330030073,0.59556631,2633.6,2632.5,2.4813]
[1724330030290,9.12999822,2634.2,2632.6,2.36835856]
[1724330030291,3.79639,2634.1,2632.6,2.36835856]
[1724330030482,4.39183316,2634.1,2633.8,0.3]
[1724330030695,4.39183316,2634.1,2633.8,2.5924]
[1724330030895,3.79652,2634.0,2633.8,2.5924]
[1724330031306,7.5933,2633.9,2633.8,0.3]
[1724330032383,3.79665,2633.9,2633.8,0.3]
[1724330032585,4.34665,2633.9,2633.8,0.3]
[1724330032839,0.98898717,2634.1,2633.8,2.6643]
[1724330033138,0.59544316,2634.1,2633.8,2.6643]
[1724330033362,7.5933,2633.9,2633.8,0.3]
[1724330033684,3.79665,2633.9,2633.8,0.3]
[1724330034128,3.0,2633.9,2633.8,0.3]
[1724330034328,3.0,2634.0,2633.8,0.3]
[1724330034727,3.0,2634.0,2633.8,0.6]
[1724330034881,0.59544316,2634.1,2633.8,0.6]
[1724330035315,3.79652,2634.0,2633.8,0.6]
[1724330035704,3.0,2633.9,2633.8,0.6]
[1724330036032,3.55,2633.9,2633.8,0.6]
[1724330036191,0.55,2633.9,2633.8,0.6]
[1724330036383,0.55,2634.0,2633.8,0.6]
[1724330036587,7.39183316,2634.1,2633.8,0.6]
[1724330036588,3.59544316,2634.1,2633.9,2.4267]
[1724330036788,7.31,2634.7,2633.9,2.4267]
[1724330036789,3.0,2634.3,2633.9,2.4267]
[1724330037036,3.79632,2634.2,2633.9,2.4267]
[1724330037232,3.7965,2634.0,2633.9,2.4267]
[1724330037387,3.0,2634.0,2633.9,2.4267]
[1724330037588,7.593,2634.0,2633.9,2.4267]
[1724330037903,7.5933,2633.9,2633.8,0.6]
[1724330038091,7.34665,2633.9,2633.8,0.6]
[1724330038292,3.55,2633.9,2633.8,0.6]
[1724330038641,3.0,2633.9,2633.8,0.9]
[1724330038991,3.59535232,2634.2,2633.9,2.3349]
[1724330039191,0.55,2634.1,2633.9,2.3349]
[1724330039543,4.34638,2634.1,2633.9,2.3349]
[1724330039697,6.7965,2634.0,2633.9,2.3349]
[1724330039891,7.3465,2634.0,2633.9,2.3349]
[1724330040421,7.3465,2634.0,2633.8,0.9]
[1724330040422,7.5933,2633.9,2633.8,0.9]
[1724330040605,8.1433,2633.9,2633.8,0.9]
[1724330040805,11.1433,2633.9,2633.8,0.9]
[1724330041142,16.77328101,2633.9,2633.8,0.9]
[1724330042242,3.7978,2633.1,2633.0,2.2948]
[1724330042446,4.3478,2633.1,2633.0,2.2948]
[1724330042647,3.79829,2632.8,2632.5,2.3585]
[1724330042936,7.59665,2632.8,2632.5,2.3585]
[1724330043243,3.7984,2632.7,2632.5,2.3585]
[1724330043537,7.59704,2632.6,2632.5,2.3585]
[1724330043749,3.79852,2632.6,2632.5,2.3585]
[1724330044040,3.0,2633.0,2632.5,2.3585]
[1724330044250,3.79797,2633.0,2632.5,2.3585]
[1724330044542,3.0,2633.3,2632.5,2.3585]
[1724330044699,3.0,2633.4,2632.7,2.4693]
[1724330046044,3.79687,2633.8,2632.7,2.4693]
[1724330046190,3.79687,2633.8,2632.8,0.07595633]
[1724330046394,3.79687,2633.8,2632.4,3.79877]
[1724330046395,3.79687,2633.8,2632.5,2.4269]
[1724330047199,3.79687,2633.8,2632.4,3.79873]
[1724330047200,3.79687,2633.8,2632.6,2.47835643]
[1724330047409,3.0,2633.7,2632.8,2.4024]
[1724330048015,0.55,2633.6,2632.8,2.4024]
[1724330048641,8.14429,2633.6,2632.8,2.4024]
[1724330048844,4.34711,2633.6,2632.8,2.4024]
[1724330049045,4.34711,2633.6,2632.9,0.26502356]
[1724330049418,4.34711,2633.6,2633.0,2.4446]
[1724330049419,0.55,2633.6,2633.0,2.4446]
[1724330050335,3.0,2633.8,2633.0,2.4446]
[1724330050336,3.55,2633.8,2633.0,2.4446]
[1724330050558,3.55,2633.8,2633.0,2.52055291]
[1724330050722,4.19017008,2634.0,2633.2,2.3954]
[1724330050723,3.0,2633.9,2633.2,2.3954]
[1724330051075,3.0,2634.0,2633.2,2.3954]
[1724330051293,5.95162476,2634.2,2633.2,2.3954]
[1724330051294,0.59535232,2634.2,2633.2,2.3954]
[1724330051578,0.59535232,2634.2,2633.3,2.47543332]
[1724330051775,3.04,2634.3,2633.4,2.64704333]
[1724330051941,3.04,2634.3,2633.6,2.4879]
[1724330052143,2.15523138,2634.8,2633.4,4.04483333]
[1724330052144,0.59525894,2634.8,2633.8,2.4879]
[1724330052363,0.59525894,2634.8,2634.0,2.4879]
[1724330052692,3.79492,2635.1,2634.2,2.4879]
[1724330053759,3.0,2635.0,2634.2,2.4879]
[1724330053958,6.7951,2635.0,2634.2,2.4879]
[1724330054132,3.7951,2635.0,2634.2,2.4879]
[1724330055088,0.55,2634.9,2634.2,2.4879]
[1724330055224,0.55,2634.9,2634.3,0.273669]
[1724330055883,0.55,2634.9,2633.7,3.79685]
[1724330055884,3.79438,2635.5,2633.9,6.23885]
[1724330056083,1.55997244,2635.7,2634.2,2.4423]
[1724330056296,3.79478,2635.2,2634.2,2.4423]
[1724330056577,3.79478,2635.2,2634.4,2.4316]
[1724330056779,3.7946,2635.4,2634.4,2.4316]
[1724330057133,3.0,2635.3,2634.4,2.4316]
[1724330057682,3.0,2635.5,2634.6,2.3188]
[1724330057849,5.59586564,2636.0,2634.6,2.3188]
[1724330057850,3.0,2635.6,2634.6,2.3188]
[1724330058049,3.794,2635.8,2634.7,2.68467634]
[1724330058228,3.63508083,2636.0,2634.8,2.45279633]
[1724330058633,3.63508083,2636.0,2634.9,0.07588594]
[1724330058634,3.04,2636.0,2634.9,0.07588594]
[1724330058849,3.91,2636.1,2635.0,2.3561]
[1724330059082,3.91,2636.1,2635.1,6.47008912]
[1724330059381,1.55997244,2636.7,2635.1,6.47008912]
[1724330059382,3.79265,2636.7,2635.2,2.4024]
[1724330059589,3.79285,2636.6,2635.2,2.4024]
[1724330059886,4.38753896,2636.7,2635.4,2.4024]
[1724330060048,0.4387539,2636.6,2635.6,2.4024]
[1724330060252,0.4387539,2636.6,2635.8,2.4744]
[1724330060867,3.04,2637.0,2635.6,2.4744]
[1724330060868,3.63485083,2637.0,2635.6,2.4744]
[1724330061068,7.42716083,2637.0,2635.6,2.4744]
[1724330061867,3.63485083,2637.0,2635.7,2.4492]
[1724330062104,3.63485083,2637.0,2635.9,2.4492]
[1724330062317,4.18788332,2637.8,2635.5,0.24024]
[1724330062318,3.79175,2637.3,2636.1,2.4492]
[1724330062470,3.79161,2637.4,2636.3,2.4492]
[1724330062794,0.59469909,2637.6,2636.3,2.4492]
[1724330063519,3.79179,2637.3,2636.3,2.4492]
[1724330063723,0.59469909,2637.6,2636.3,2.4492]
[1724330063862,0.47786813,2637.5,2636.5,2.3734]
[1724330064220,10.74076,2638.0,2636.7,2.4299]
[1724330064374,3.7909,2637.9,2636.7,2.4299]
[1724330064918,10.74086,2638.0,2636.7,2.4299]
[1724330065077,3.79155,2637.5,2636.7,2.4299]
[1724330065445,0.379155,2637.4,2636.7,2.4299]
[1724330065775,10.74078,2638.0,2636.7,2.4299]
[1724330066013,3.04,2638.0,2636.8,0.07583054]
[1724330066327,6.83077,2638.0,2636.9,2.4627]
[1724330066970,3.04,2638.0,2636.9,2.4627]
[1724330067171,3.79108,2637.8,2636.9,2.4627]
[1724330067395,0.758207,2637.7,2636.9,2.4627]
[1724330067606,3.0,2637.8,2636.9,2.4627]
[1724330067814,3.79115,2637.8,2636.9,2.4627]
[1724330068038,3.55,2637.9,2636.9,2.4627]
[1724330068333,3.79119,2637.7,2636.9,2.4627]
[1724330068742,0.55,2637.6,2636.9,2.4627]
[1724330068943,4.34136,2637.6,2636.9,2.4627]
[1724330069255,0.55,2637.6,2636.9,2.4627]
[1724330069539,3.79216,2637.1,2636.9,2.4627]
[1724330069702,3.7918,2637.3,2636.9,2.4627]
[1724330070036,3.55,2637.2,2636.9,2.4627]
[1724330070241,0.3934061,2637.5,2636.9,2.4627]
[1724330070533,3.7915,2637.5,2636.9,2.4627]
[1724330070742,3.0,2637.6,2636.9,2.4627]
[1724330070743,3.67915,2637.4,2636.9,2.4627]
[1724330070949,3.0,2637.4,2636.9,2.4627]
[1724330071149,6.79136,2637.6,2636.9,2.4627]
[1724330071287,0.55,2637.5,2636.9,2.4627]
[1724330073222,3.79162,2637.4,2636.9,2.4627]
[1724330073556,4.776052,2637.3,2636.9,2.4627]
[1724330073864,0.55,2637.5,2636.9,2.4627]
[1724330074005,3.0,2637.6,2636.9,2.4627]
[1724330074206,4.1950978,2637.7,2636.9,2.4627]
[1724330074422,3.0,2637.6,2636.9,2.4627]
[1724330075406,3.79187,2637.3,2636.9,2.4627]
[1724330075608,3.79194,2637.2,2636.9,2.4627]
[1724330075809,3.79187,2637.3,2636.9,2.4627]
[1724330075810,4.550421,2637.1,2636.9,2.4627]
[1724330076264,8.13436,2637.0,2636.9,2.4627]
[1724330076412,4.34218,2637.0,2636.9,2.4627]
[1724330076807,0.55,2637.0,2636.9,2.4627]
[1724330077759,4.550441,2637.1,2636.9,2.4627]
[1724330077760,0.758381,2637.1,2636.9,2.4627]
[1724330077922,3.0,2637.2,2636.9,2.4627]
[1724330078259,0.55,2637.1,2636.9,2.4627]
[1724330078413,3.0,2637.3,2636.9,2.4627]
[1724330078609,3.79363,2636.0,2634.3,3.79594]
[1724330078808,3.79409,2635.7,2634.0,3.79648]
[1724330079012,3.79409,2635.7,2633.9,0.7]
[1724330079013,3.79393,2635.8,2634.1,3.79632]
[1724330079266,0.55,2635.7,2634.1,3.79632]
[1724330079555,0.55,2635.7,2633.8,3.79672]
[1724330079556,3.55,2635.7,2633.8,3.79672]
[1724330079756,3.79436,2635.5,2633.8,3.79672]
[1724330080059,3.55,2635.7,2633.7,2.1214]
[1724330080060,0.55,2635.4,2633.9,3.79665]
[1724330080240,3.7942,2635.6,2634.0,3.79646]
[1724330080559,0.55,2635.5,2634.0,3.79646]
[1724330081149,7.34438,2635.5,2633.7,3.79692]
[1724330081348,0.55,2635.4,2634.0,3.79649]
[1724330081509,3.0,2635.6,2634.0,3.7965]
[1724330081715,6.79381,2635.9,2634.4,2.4335]
[1724330081959,4.34395,2635.8,2634.4,2.4335]
[1724330082164,3.79421,2635.6,2634.6,2.3897]
[1724330082465,0.55,2635.5,2634.6,2.3897]
[1724330083732,4.34434,2635.5,2634.6,2.3897]
[1724330085034,0.55,2635.5,2634.6,2.3897]
[1724330085362,0.55,2635.5,2634.1,3.0]
[1724330085363,3.55,2635.6,2634.8,2.4823]
[1724330085665,3.0,2635.6,2634.8,2.4823]
[1724330085812,3.79367,2636.0,2634.8,2.4823]
[1724330086228,6.83336,2636.2,2634.8,2.4823]
[1724330086229,3.79349,2636.1,2634.8,2.4823]
[1724330086438,0.683349,2636.0,2635.0,2.3055]
[1724330086723,3.04,2636.2,2635.0,2.3055]
[1724330086724,3.7938,2635.9,2635.0,2.3055]
[1724330087077,3.79407,2635.7,2635.0,2.3055]
[1724330087270,0.55,2635.6,2635.0,2.3055]
[1724330087640,6.79366,2636.0,2635.0,2.3055]
[1724330087855,0.55,2635.9,2635.0,2.3055]
[1724330088056,0.55,2635.9,2635.1,2.58225]
[1724330088429,0.55,2636.0,2635.1,2.58225]
[1724330088687,0.55,2636.0,2635.1,2.3517]
[1724330089845,4.34366,2636.0,2635.1,2.3517]
[1724330090181,3.0,2635.9,2635.1,2.3517]
[1724330090342,0.55,2635.8,2635.1,2.3517]
[1724330090545,3.0,2636.0,2635.1,2.3517]
[1724330090735,3.0,2636.0,2635.3,2.4302]
[1724330091074,3.0,2636.1,2635.3,2.4302]
[1724330091231,3.79372,2636.0,2635.3,2.4302]
[1724330091424,3.0,2635.9,2635.3,2.4302]
[1724330091657,0.679372,2635.8,2635.3,2.4302]
[1724330091875,0.55,2635.7,2635.3,2.4302]
[1724330092846,4.34408,2635.7,2635.3,2.4302]
[1724330093245,0.55,2635.7,2635.3,2.4302]
[1724330094484,6.79385,2635.9,2635.3,2.4302]
[1724330094485,3.0,2635.9,2635.3,2.4302]
[1724330094996,0.55,2635.8,2634.3,3.0]
[1724330095299,0.55,2635.8,2633.2,3.79764]
[1724330095300,3.79536,2634.8,2633.2,3.79764]
[1724330095586,3.79507,2635.0,2632.8,5.283]
[1724330095587,3.0,2634.7,2632.8,5.283]
[1724330095786,3.0,2634.7,2633.1,3.79777]
[1724330096087,3.79521,2634.9,2633.1,3.79777]
[1724330096088,3.0,2634.8,2633.1,3.79777]
[1724330096291,0.55,2634.7,2633.1,3.79777]
[1724330097869,0.55,2634.7,2633.2,3.79763]
[1724330098052,3.0,2634.8,2633.3,2.2962]
[1724330098552,3.0,2634.8,2633.4,2.2962]
[1724330098748,3.0,2634.8,2633.5,2.346]
[1724330099169,3.79557,2634.7,2633.5,2.346]
[1724330099538,6.79566,2634.6,2633.5,2.346]
[1724330100264,4.34523,2634.9,2633.5,2.346]
[1724330100265,3.79536,2634.8,2633.5,2.346]
[1724330100483,3.55,2634.9,2633.7,2.2782]
[1724330100703,0.55,2634.9,2633.8,2.2782]
[1724330100877,0.55,2635.0,2633.8,2.2782]
[1724330101043,3.0,2635.2,2633.8,2.2782]
[1724330101044,4.34505,2635.1,2633.8,2.2782]
[1724330101388,3.79608,2634.3,2633.8,2.2782]
[1724330101539,6.7958,2634.5,2633.8,2.2782]
[1724330101758,7.31,2634.9,2633.8,2.2782]
[1724330101959,3.79551,2634.7,2633.8,2.2782]
[1724330102403,6.79525,2634.9,2633.8,2.2782]
[1724330102710,0.55,2634.8,2633.9,0.30374205]
[1724330103064,0.55,2634.8,2633.9,0.22782]
[1724330103713,3.79481,2635.2,2634.0,2.38432211]
[1724330104003,4.34503,2635.1,2634.0,2.3084]
[1724330104205,3.79508,2635.0,2634.1,0.253622]
[1724330104507,4.34523,2634.9,2634.1,0.253622]
[1724330104715,3.79523,2634.9,2634.1,0.253622]
[1724330104858,3.79535,2634.8,2634.1,0.253622]
[1724330105588,3.7955,2634.7,2634.1,0.253622]
[1724330106018,3.7958,2634.5,2634.0,2.3084]
[1724330106219,3.79651,2634.0,2633.6,2.3927]
[1724330107077,3.79624,2634.2,2633.6,2.3927]
[1724330107283,4.34637,2634.1,2633.6,2.3927]
[1724330107674,3.7950117,2633.8,2633.3,2.2621]
[1724330107880,3.79694,2633.7,2633.3,2.2621]
[1724330108211,3.7950117,2633.8,2633.3,2.2621]
[1724330108513,3.79699,2633.7,2633.3,2.2621]
[1724330108803,3.79699,2633.7,2632.8,1.0]
[1724330108804,3.79733,2633.5,2632.9,2.3986]
[1724330109175,6.79682,2633.8,2632.9,2.3986]
[1724330109381,10.31,2634.1,2632.9,2.3986]
[1724330109587,0.55,2634.0,2632.9,2.3986]
[1724330109820,0.55,2634.0,2632.8,1.0]
[1724330109821,0.55,2634.0,2633.1,2.3404]
[1724330109988,3.79665,2633.9,2633.1,2.3404]
[1724330110184,0.55,2634.0,2633.1,2.3404]
[1724330110518,3.79719,2633.6,2632.8,3.3693]
[1724330110708,3.0,2633.5,2632.8,3.3693]
[1724330110870,4.34749,2633.4,2632.8,3.3693]
[1724330111217,0.55,2633.4,2632.8,3.3693]
[1724330111400,3.79772,2633.2,2632.8,1.0]
[1724330111583,6.79781,2633.1,2632.8,1.0]
[1724330111996,3.0,2633.1,2632.8,1.0]
[1724330112207,0.55,2633.4,2632.8,1.0]
[1724330112208,3.0,2633.2,2632.8,1.0]
[1724330112532,0.39252387,2633.9,2632.8,1.0]
[1724330112533,3.0,2633.5,2632.8,1.0]
[1724330112685,4.34742,2633.4,2632.8,1.0]
[1724330112879,3.0,2633.3,2632.8,1.0]
[1724330113093,6.79751,2633.3,2632.8,1.0]
[1724330113296,3.0,2633.3,2632.8,1.0]
[1724330113512,0.55,2633.2,2632.8,1.0]
[1724330113909,7.34769,2633.2,2632.8,1.0]
[1724330114109,3.79809,2632.9,2632.8,1.0]
[1724330114311,7.34809,2632.9,2632.8,1.0]
[1724330114511,3.55,2632.9,2632.8,1.0]
[1724330116339,3.0,2632.9,2632.8,1.0]
[1724330116687,3.0,2633.2,2632.8,1.0]
[1724330116931,6.79771,2633.2,2632.8,1.0]
[1724330117390,3.79808,2633.0,2632.8,1.0]
[1724330117592,3.0,2632.9,2632.8,1.0]
[1724330118436,7.34781,2633.1,2632.8,1.0]
[1724330118631,3.55,2633.1,2632.8,1.0]
[1724330119290,7.34781,2633.1,2632.8,1.0]
[1724330119487,7.34781,2633.1,2632.8,3.3527]
[1724330119488,3.79809,2632.9,2632.8,3.3527]
[1724330119738,3.0,2632.9,2632.8,3.3527]
[1724330120028,3.0,2632.9,2632.8,1.0]
[1724330120244,6.79795,2633.0,2632.8,1.0]
[1724330120454,3.0,2633.0,2632.8,1.0]
[1724330120743,3.79668,2633.9,2632.9,2.3469]
[1724330121039,4.13993239,2633.9,2633.0,0.07594886]
[1724330121186,3.04,2634.0,2633.1,0.07594502]
[1724330121387,3.04,2634.0,2633.2,2.3993]
[1724330121595,3.04,2634.0,2632.8,1.0]
[1724330121825,7.59618,2632.9,2632.8,1.0]
[1724330122508,14.39427,2632.9,2632.8,1.0]
[1724330122710,14.39427,2632.9,2632.3,15.6181652]
[1724330122711,7.59762,2632.4,2632.3,15.6181652]
[1724330123007,11.14762,2632.4,2632.3,15.6181652]
[1724330123209,13.60132,2632.4,2632.3,13.7186852]
[1724330123409,18.31927206,2632.4,2632.3,8.0202452]
[1724330123625,17.75364618,2632.4,2632.3,8.0202452]
[1724330123794,13.95483618,2632.4,2632.3,8.0202452]
[1724330123994,13.60132,2632.4,2632.3,8.0202452]
[1724330124410,9.80251,2632.4,2632.3,8.0202452]
[1724330125136,13.60132,2632.4,2632.3,8.0202452]
[1724330125665,13.95484127,2632.4,2632.3,8.0202452]
[1724330125863,13.60132,2632.4,2632.3,8.0202452]
[1724330126159,9.80251,2632.4,2632.3,8.0202452]
[1724330126454,13.60132,2632.4,2632.3,8.0202452]
[1724330127510,9.80251,2632.4,2632.3,8.0202452]
[1724330127709,13.60132,2632.4,2632.3,8.0202452]
[1724330128311,17.40013,2632.4,2632.3,8.0202452]
[1724330128559,13.60132,2632.4,2632.3,8.0202452]
[1724330129617,10.59762,2632.4,2632.3,8.0202452]
[1724330130158,6.79881,2632.4,2632.3,8.0202452]
[1724330130360,3.79881,2632.4,2632.3,8.0202452]
[1724330130715,3.79867,2632.5,2632.3,8.0202452]
[1724330131146,3.79881,2632.4,2632.3,8.0202452]
[1724330131668,3.91,2632.6,2632.3,8.0202452]
[1724330131847,3.91,2632.6,2632.3,9.06307243]
[1724330132357,3.79784,2633.1,2632.3,9.06307243]
[1724330132514,3.79784,2633.1,2632.4,2.382]
[1724330132719,3.79798,2633.0,2632.4,2.382]
[1724330133041,3.79798,2633.0,2632.4,3.52650724]
[1724330133429,6.83767,2633.2,2632.4,3.52650724]
[1724330133430,3.7984,2632.7,2632.4,3.52650724]
[1724330133975,3.79859,2632.6,2632.4,2.382]
[1724330134258,3.79795,2633.0,2632.4,2.382]
[1724330134457,6.83767,2633.2,2632.4,2.382]
[1724330134458,7.39382667,2632.9,2632.4,2.382]
[1724330135118,3.59569667,2632.9,2632.4,2.382]
[1724330135321,6.83766,2633.2,2632.4,2.382]
[1724330135322,3.04,2633.2,2632.4,2.382]
[1724330135614,15.01742,2633.4,2632.6,2.4925]
[1724330135615,0.59563651,2633.3,2632.6,2.4925]
[1724330137065,3.79695,2633.7,2632.6,2.4925]
[1724330137385,4.39245381,2633.7,2632.6,2.4925]
[1724330137665,0.59550381,2633.7,2632.6,2.4925]
[1724330137879,0.59550381,2633.7,2632.7,2.64227245]
[1724330137880,4.39246381,2633.7,2632.7,2.64227245]
[1724330138344,0.59550381,2633.7,2632.7,2.64227245]
[1724330138538,0.59550381,2633.7,2632.8,2.3504]
[1724330138945,4.39254381,2633.7,2632.8,2.3504]
[1724330139240,4.39254381,2633.7,2632.9,2.62076724]
[1724330139779,3.0,2633.6,2632.9,2.62076724]
[1724330139981,3.59550381,2633.7,2632.9,2.62076724]
[1724330140489,0.59550381,2633.7,2632.9,2.62076724]
[1724330140689,0.59550381,2633.7,2633.1,2.2749]
[1724330146097,3.79709,2633.6,2633.1,2.2749]
[1724330146599,0.59550381,2633.7,2633.1,2.2749]
[1724330147610,4.39248381,2633.7,2633.1,2.2749]
[1724330147809,0.59550381,2633.7,2633.1,2.2749]
[1724330148107,0.59550381,2633.7,2633.1,2.50239]
[1724330151392,5.35596244,2634.4,2633.1,2.50239]
[1724330151600,3.79624,2634.2,2633.1,2.50239]
[1724330152062,3.79637,2634.1,2633.1,2.50239]
[1724330152259,3.79624,2634.2,2633.1,2.50239]
[1724330152499,7.59257,2634.2,2633.3,2.4048]
[1724330152814,3.79638,2634.1,2633.3,2.4048]
[1724330152990,5.35621244,2634.2,2633.3,2.4048]
[1724330153315,3.0,2634.3,2633.3,2.4048]
[1724330153663,2.55695264,2634.5,2633.3,2.4048]
[1724330153664,1.55997244,2634.5,2633.3,2.4048]
[1724330153877,5.75734975,2634.6,2633.4,2.5594039]
[1724330153878,3.79568,2634.6,2633.4,2.5594039]
[1724330154115,1.55997244,2634.7,2633.4,2.5594039]
[1724330154116,1.55997244,2634.7,2633.5,2.2939]
[1724330154411,3.0,2634.7,2633.7,2.3688]
[1724330155130,3.0,2634.7,2633.8,2.44471718]
[1724330155433,1.55997244,2634.9,2633.9,2.56967172]
[1724330155758,3.79521,2634.9,2633.9,2.56967172]
[1724330155931,9.15029244,2635.0,2633.9,2.56967172]
[1724330156135,3.79513,2635.0,2633.9,2.56967172]
[1724330156282,7.5903,2635.0,2634.1,2.2904]
[1724330156485,8.86997244,2635.1,2634.1,2.2904]
[1724330156486,1.55997244,2635.1,2634.1,2.2904]
[1724330156688,3.7949,2635.2,2634.1,2.2904]
[1724330156689,5.35487244,2635.2,2634.1,2.2904]
[1724330156916,3.7949,2635.2,2634.1,2.2904]
[1724330157135,7.5898,2635.2,2634.3,2.2904]
[1724330157316,3.7949,2635.2,2634.3,2.2904]
[1724330158032,0.59517928,2635.3,2634.3,2.2904]
[1724330158600,3.79457,2635.4,2634.3,2.2904]
[1724330158804,0.59509949,2635.4,2634.3,2.2904]
[1724330158994,0.59509949,2635.4,2634.5,2.3482]
[1724330159333,3.79477,2635.2,2634.5,2.3482]
[1724330160032,0.59509949,2635.4,2634.5,2.3482]
[1724330160218,4.38958949,2635.4,2634.5,2.3482]
[1724330160418,3.0,2635.3,2634.5,2.3482]
[1724330160583,3.0,2635.3,2634.6,2.73462]
[1724330160785,3.0,2635.5,2634.7,2.4998]
[1724330161021,3.79399,2635.8,2634.7,2.4998]
[1724330161534,3.79353,2636.1,2634.8,2.3119]
[1724330161744,3.79353,2636.1,2634.7,10.02335]
[1724330161745,3.79353,2636.1,2635.0,2.3119]
[1724330162086,0.59498672,2636.3,2635.0,2.3119]
[1724330162386,3.79343,2636.2,2635.2,2.4448]
[1724330162634,3.79343,2636.2,2635.2,2.98928]
[1724330163195,3.79341,2636.2,2635.2,2.98928]
[1724330165019,0.5948878,2636.4,2635.2,2.98928]
[1724330165198,4.3880178,2636.4,2635.2,2.98928]
[1724330165403,3.0,2636.3,2635.2,2.98928]
[1724330165724,6.79256,2636.8,2635.5,2.2667]
[1724330165725,3.79253,2636.8,2635.5,2.2667]
[1724330165891,0.59482765,2636.9,2635.6,2.2667]
[1724330166096,0.59482765,2636.9,2635.6,3.79411]
[1724330166296,3.79196,2637.2,2635.8,2.2667]
[1724330166605,6.228,2637.7,2635.7,4.54931631]
[1724330166606,0.5946801,2637.3,2636.0,2.2504]
[1724330166790,0.5946801,2637.3,2636.2,2.2504]
[1724330167130,0.5946801,2637.3,2636.4,2.2504]
[1724330167344,0.5946801,2637.3,2636.6,2.4154]
[1724330167688,3.43667506,2637.7,2636.8,2.4154]
[1724330167890,0.39667506,2637.7,2636.8,2.4154]
[1724330168092,3.7911,2637.8,2636.9,2.49122965]
[1724330168431,0.59460491,2637.9,2636.9,2.49122965]
[1724330168432,4.38555491,2637.9,2637.0,0.07582964]
[1724330168644,4.38555491,2637.9,2637.1,2.4154]
[1724330168954,4.38557491,2637.9,2637.1,2.4154]
[1724330169105,3.79133,2637.6,2637.1,2.4154]
[1724330169308,3.79129,2637.7,2637.1,2.4154]
[1724330169598,4.38557491,2637.9,2637.1,2.4154]
[1724330169803,3.79114,2637.8,2637.1,2.4154]
[1724330170002,3.0,2637.7,2637.1,2.4154]
[1724330170235,3.0,2637.8,2637.1,2.4154]